bitfinex-derivatives/quotes_ETHF0:USTF0_20241004
["timestamp","ask_amount","ask_price","bid_price","bid_amount"]
[1728032706212,0.41943,2384.4,2384.2,0.41944]
[1728032706414,4.0322,2384.5,2384.1,3.27]
[1728032706619,3.6281,2384.5,2384.4,0.41941]
[1728032706818,4.0475,2384.5,2384.3,3.68941]
[1728032707018,3.6281,2384.5,2384.4,0.41941]
[1728032707411,3.6281,2384.5,2384.3,3.27]
[1728032707720,4.0475,2384.5,2384.3,3.68942]
[1728032708113,3.6281,2384.5,2384.3,3.27]
[1728032708311,3.6281,2384.5,2384.4,0.41941]
[1728032709516,3.2078,2384.5,2384.4,0.41941]
[1728032709722,4.03601,2385.0,2384.4,5.24211]
[1728032709925,3.6167,2385.0,2384.7,3.27]
[1728032710218,0.41932,2384.9,2384.8,0.41933]
[1728032710411,0.41934,2384.8,2384.6,3.27]
[1728032710818,0.41933,2384.9,2384.7,0.41935]
[1728032711216,0.41934,2384.8,2384.6,3.68937]
[1728032711418,3.6167,2385.0,2384.6,3.27]
[1728032711713,0.41933,2384.9,2384.7,0.41936]
[1728032712319,0.41933,2384.9,2384.6,3.27]
[1728032712619,0.41933,2384.9,2384.7,0.41935]
[1728032712820,0.41933,2384.9,2384.6,3.68936]
[1728032713315,3.6167,2385.0,2384.6,3.27]
[1728032713619,0.41941,2384.4,2384.3,0.097]
[1728032713915,0.41945,2384.2,2384.0,0.41946]
[1728032714321,0.41947,2384.1,2383.9,6.4778]
[1728032714723,0.41947,2384.1,2383.9,6.8973]
[1728032715224,0.41947,2384.1,2383.9,11.0917]
[1728032715421,0.41947,2384.1,2383.9,6.8973]
[1728032716123,0.41947,2384.1,2384.0,0.3954]
[1728032716522,0.4112,2384.3,2384.0,0.3954]
[1728032716726,0.4112,2384.3,2384.2,3.27]
[1728032716919,0.83063,2384.3,2384.2,3.27]
[1728032717225,0.4112,2384.3,2384.2,3.68944]
[1728032719225,3.2078,2384.5,2384.2,7.4644]
[1728032719423,2.35922,2385.1,2384.4,3.27]
[1728032719424,0.3959,2384.8,2384.4,3.27]
[1728032719620,0.3959,2384.8,2384.6,3.68937]
[1728032719930,0.81524,2384.8,2384.6,3.68937]
[1728032720125,0.81524,2384.8,2384.6,3.27]
[1728032720423,0.3959,2384.8,2384.6,3.27]
[1728032720628,0.81525,2384.8,2384.6,3.27]
[1728032721129,0.81525,2384.8,2384.6,3.68937]
[1728032721336,0.41936,2384.7,2384.6,3.27]
[1728032721636,0.81525,2384.8,2384.6,3.27]
[1728032722229,0.81525,2384.8,2384.6,3.68936]
[1728032723038,0.41931,2385.0,2384.8,0.41934]
[1728032723238,0.83541,2385.0,2384.8,0.41934]
[1728032723436,0.83541,2385.0,2384.9,0.397]
[1728032723938,0.4161,2385.0,2384.9,0.81632]
[1728032724238,0.4161,2385.0,2384.9,0.397]
[1728032724624,0.8354,2385.0,2384.9,0.397]
[1728032728136,0.4161,2385.0,2384.9,0.397]
[1728032728431,0.8354,2385.0,2384.9,0.397]
[1728032728832,0.8354,2385.0,2384.9,0.81632]
[1728032729041,0.4161,2385.0,2384.9,0.81632]
[1728032729238,0.8354,2385.0,2384.9,0.397]
[1728032731338,0.4161,2385.0,2384.9,0.397]
[1728032731539,0.4161,2385.0,2384.9,0.81632]
[1728032731739,0.4161,2385.0,2384.9,0.397]
[1728032731940,0.8354,2385.0,2384.9,0.397]
[1728032732547,0.8354,2385.0,2384.9,0.81632]
[1728032733733,0.4161,2385.0,2384.9,0.81632]
[1728032734542,0.8354,2385.0,2384.9,0.81632]
[1728032735140,0.4161,2385.0,2384.9,0.81632]
[1728032736647,0.41929,2385.1,2385.0,0.4193]
[1728032737244,0.83418,2385.2,2385.0,3.27]
[1728032737445,0.83418,2385.2,2385.0,4.08079]
[1728032737644,0.41929,2385.1,2385.0,4.08079]
[1728032738343,0.4149,2385.2,2385.0,4.08079]
[1728032738939,0.41929,2385.1,2385.0,4.08079]
[1728032739444,0.83418,2385.2,2385.0,3.6615]
[1728032739644,0.83418,2385.2,2385.0,4.08079]
[1728032740242,0.4149,2385.2,2385.0,4.08079]
[1728032740549,0.41929,2385.1,2385.0,4.08079]
[1728032743245,0.83417,2385.2,2385.1,0.41929]
[1728032744247,0.4149,2385.2,2385.1,0.41929]
[1728032744757,0.41929,2385.1,2385.0,4.08079]
[1728032744943,0.41929,2385.1,2385.0,3.6615]
[1728032745143,0.4193,2385.0,2384.9,0.397]
[1728032745349,0.4193,2385.0,2384.9,0.81632]
[1728032747758,0.4193,2385.0,2384.9,0.397]
[1728032748252,0.4193,2385.0,2384.9,0.81632]
[1728032749050,0.4193,2385.1,2385.0,0.4193]
[1728032749653,0.4193,2385.0,2384.9,0.81631]
[1728032750660,0.4193,2385.1,2384.9,0.397]
[1728032751071,0.4193,2385.1,2385.0,0.4193]
[1728032751254,0.4193,2385.1,2385.0,3.6893]
[1728032752463,0.4193,2385.1,2385.0,3.27]
[1728032753167,0.4193,2385.1,2385.0,3.6893]
[1728032753468,0.4193,2385.1,2385.0,3.27]
[1728032753967,1.04814,2385.3,2385.1,0.41927]
[1728032753968,0.41926,2385.3,2385.1,0.41927]
[1728032754267,0.41927,2385.2,2385.1,0.41927]
[1728032754464,0.3966,2385.3,2385.1,0.41927]
[1728032754660,0.81587,2385.3,2385.1,0.41927]
[1728032754862,0.41927,2385.2,2385.1,0.41927]
[1728032755260,0.81586,2385.3,2385.0,3.27]
[1728032755456,0.81586,2385.3,2385.1,0.41927]
[1728032756059,0.81586,2385.3,2385.0,3.27]
[1728032756262,0.81586,2385.3,2385.2,0.41927]
[1728032756572,0.3966,2385.3,2385.2,0.41927]
[1728032756861,0.81585,2385.3,2385.2,3.27]
[1728032760183,0.81585,2385.3,2385.2,3.68927]
[1728032760378,0.3966,2385.3,2385.2,3.68927]
[1728032760691,0.81585,2385.3,2385.2,3.27]
[1728032760981,0.81585,2385.3,2385.2,3.68927]
[1728032762379,0.81585,2385.3,2385.2,3.27]
[1728032762887,0.41927,2385.2,2385.1,3.27]
[1728032763189,0.41927,2385.2,2385.1,3.68929]
[1728032763190,0.84097,2385.2,2385.1,3.68929]
[1728032764379,0.84097,2385.2,2385.1,3.27]
[1728032765587,4.04877,2385.2,2385.1,3.27]
[1728032765789,0.4193,2385.0,2384.9,4.08631]
[1728032766584,0.4193,2385.0,2384.9,3.667]
[1728032766785,4.1928,2385.0,2384.6,3.3048]
[1728032766979,3.2078,2384.8,2384.3,1.18926729]
[1728032767176,0.41941,2384.4,2384.3,1.09226729]
[1728032767584,4.61381,2384.4,2384.3,1.09226729]
[1728032767781,5.01441,2384.4,2384.3,1.09226729]
[1728032767982,5.0041,2384.4,2384.3,1.09226729]
[1728032768186,1.22911,2384.4,2384.3,4.36226729]
[1728032768689,1.22911,2384.4,2384.3,1.09226729]
[1728032769793,0.8097,2384.4,2384.3,4.36226729]
[1728032769990,0.4006,2384.4,2384.3,4.78169729]
[1728032770191,0.4006,2384.4,2384.3,4.36226729]
[1728032770391,0.4006,2384.4,2384.3,4.78169729]
[1728032770890,0.4006,2384.4,2384.3,3.68943]
[1728032772292,5.88481223,2384.7,2384.5,0.41938]
[1728032772484,5.88481223,2384.7,2384.6,3.27]
[1728032772692,0.41936,2384.7,2384.6,3.27]
[1728032772888,0.41936,2384.7,2384.6,3.68937]
[1728032773886,0.8081,2384.8,2384.6,3.68937]
[1728032773887,1.22745,2384.8,2384.6,3.68937]
[1728032774292,0.3955,2384.8,2384.7,0.41936]
[1728032774493,0.81484,2384.8,2384.7,0.82666]
[1728032774688,0.81484,2384.8,2384.7,0.4073]
[1728032774894,0.81484,2384.8,2384.7,0.82666]
[1728032775091,0.81484,2384.8,2384.7,0.4073]
[1728032778798,0.81484,2384.8,2384.7,0.82666]
[1728032780301,0.81484,2384.8,2384.7,0.4073]
[1728032780499,0.81484,2384.8,2384.7,0.82666]
[1728032780997,0.41933,2384.9,2384.7,0.4073]
[1728032781203,3.2078,2385.0,2384.7,0.4073]
[1728032781204,3.2078,2385.0,2384.8,3.68934]
[1728032781704,0.41932,2384.9,2384.8,3.68934]
[1728032781906,3.62711,2385.0,2384.8,3.68934]
[1728032782202,3.62711,2385.0,2384.8,3.68933]
[1728032782402,3.62711,2385.0,2384.9,0.41932]
[1728032782403,3.2078,2385.0,2384.9,0.41932]
[1728032783006,3.6271,2385.0,2384.9,0.41932]
[1728032783701,3.6271,2385.0,2384.8,3.68933]
[1728032784807,3.2078,2385.0,2384.8,3.27]
[1728032785112,3.62711,2385.0,2384.8,3.68933]
[1728032785605,0.3948,2385.1,2384.8,3.27]
[1728032785807,0.81409,2385.1,2385.0,3.27]
[1728032787218,0.3948,2385.1,2385.0,3.6893]
[1728032787409,5.46545223,2385.2,2385.1,0.41929]
[1728032787811,5.46545223,2385.2,2385.1,0.82179]
[1728032788808,0.3974,2385.4,2385.1,4.5953]
[1728032789009,5.85925223,2385.6,2385.3,3.27]
[1728032789204,5.46545223,2385.6,2385.5,3.68922]
[1728032790609,5.46545223,2385.6,2385.5,7.88122]
[1728032791706,5.46545223,2385.6,2385.5,13.81902]
[1728032791911,0.4047,2386.1,2386.0,0.41913]
[1728032792210,3.2078,2386.3,2386.0,4.1912]
[1728032792414,3.62688,2386.3,2386.2,3.27]
[1728032792614,0.41908,2386.3,2386.2,3.27]
[1728032793309,0.4047,2386.4,2386.2,3.68909]
[1728032793513,0.82377,2386.4,2386.2,3.27]
[1728032795714,0.41903,2386.6,2386.3,0.41907]
[1728032796017,0.81633,2386.6,2386.4,3.27]
[1728032796914,0.3973,2386.6,2386.4,3.27]
[1728032797217,0.81633,2386.6,2386.4,3.27]
[1728032797718,0.41904,2386.5,2386.4,3.27]
[1728032797907,0.81633,2386.6,2386.4,3.27]
[1728032798114,0.81633,2386.6,2386.4,3.68905]
[1728032798616,0.81633,2386.6,2386.4,3.27]
[1728032798827,0.41904,2386.5,2386.4,3.27]
[1728032799120,0.3973,2386.6,2386.4,3.27]
[1728032799316,0.81634,2386.6,2386.4,3.27]
[1728032799515,0.41904,2386.5,2386.4,3.27]
[1728032800212,1.04747,2386.8,2386.4,3.27]
[1728032800415,0.41903,2386.6,2386.4,3.68906]
[1728032800719,0.41903,2386.6,2386.4,3.27]
[1728032801017,0.41904,2386.5,2386.4,3.27]
[1728032801412,0.41903,2386.6,2386.4,3.27]
[1728032803116,0.41904,2386.5,2386.4,3.27]
[1728032803924,3.2078,2386.6,2386.2,3.27]
[1728032804120,0.41906,2386.4,2386.2,3.27]
[1728032804519,0.41906,2386.4,2386.2,3.68909]
[1728032804920,0.41906,2386.4,2386.2,3.27]
[1728032805122,0.41907,2386.4,2386.2,3.27]
[1728032805528,0.41909,2386.3,2386.1,3.6116]
[1728032805729,0.3889,2386.2,2386.1,3.6116]
[1728032806032,0.80799,2386.2,2386.1,3.6116]
[1728032806212,0.3889,2386.2,2386.1,3.6116]
[1728032807016,0.80799,2386.2,2386.1,3.6116]
[1728032807621,4.01579,2386.2,2386.1,0.4038]
[1728032807831,7.7879,2386.2,2385.7,3.27]
[1728032808126,3.2078,2385.9,2385.6,0.097]
[1728032808326,0.41922,2385.5,2385.4,3.27]
[1728032809827,3.2078,2385.5,2385.2,3.27]
[1728032810023,3.2078,2385.5,2385.0,6.4778]
[1728032810220,0.41929,2385.1,2385.0,3.27]
[1728032810627,0.41928,2385.2,2385.0,3.27]
[1728032810822,0.4041,2385.1,2385.0,3.27]
[1728032811424,0.4041,2385.1,2385.0,3.6893]
[1728032816031,0.4041,2385.1,2385.0,3.27]
[1728032816233,0.82339,2385.1,2385.0,3.27]
[1728032816933,0.4041,2385.1,2385.0,3.27]
[1728032818033,0.82339,2385.1,2385.0,3.27]
[1728032818522,0.4041,2385.1,2385.0,3.27]
[1728032819425,0.82339,2385.1,2385.0,3.27]
[1728032822223,0.41932,2384.9,2384.8,3.6785]
[1728032823628,0.41932,2384.9,2384.8,3.27]
[1728032825527,0.41931,2385.0,2384.8,3.68932]
[1728032825730,3.6119,2385.1,2385.0,0.4193]
[1728032825933,0.3983,2385.3,2384.9,3.27]
[1728032825934,0.81756,2385.3,2384.9,3.27]
[1728032826139,0.3983,2385.3,2385.2,3.68927]
[1728032826327,0.81755,2385.3,2385.2,3.68927]
[1728032826530,0.82184,2385.4,2385.2,3.68927]
[1728032826938,0.82184,2385.4,2385.2,3.27]
[1728032826939,0.41925,2385.3,2385.2,3.27]
[1728032827838,0.82184,2385.4,2385.2,3.27]
[1728032828036,0.41925,2385.3,2385.2,3.27]
[1728032828237,0.41929,2385.1,2385.0,3.6607]
[1728032831345,0.82339,2385.1,2385.0,3.6607]
[1728032835345,0.82339,2385.1,2385.0,4.08]
[1728032836042,0.41929,2385.1,2385.0,4.08]
[1728032836545,0.41928,2385.2,2385.1,0.41929]
[1728032837847,0.41929,2385.1,2385.0,4.08]
[1728032838145,0.41927,2385.2,2385.1,0.41928]
[1728032838536,1.8515,2385.4,2385.0,3.6607]
[1728032838537,0.41929,2385.1,2385.0,4.08]
[1728032838942,0.41928,2385.2,2385.0,4.08]
[1728032839645,0.4026,2385.4,2385.0,7.8535]
[1728032839849,0.82183,2385.4,2385.3,3.27]
[1728032841334,0.41928,2385.2,2385.1,3.27]
[1728032841647,0.41928,2385.2,2385.1,3.68929]
[1728032841946,0.41928,2385.2,2385.1,3.27]
[1728032842148,0.41928,2385.2,2385.1,3.68929]
[1728032842447,0.41928,2385.2,2385.1,3.27]
[1728032842646,1.4507,2385.4,2385.1,3.68929]
[1728032842842,0.41926,2385.3,2385.2,0.41927]
[1728032843048,0.82184,2385.4,2385.2,0.41927]
[1728032843250,0.82184,2385.4,2385.3,3.27]
[1728032843748,0.82184,2385.4,2385.3,3.68925]
[1728032843948,0.82184,2385.4,2385.3,3.27]
[1728032846853,1.04813,2385.3,2384.8,0.097]
[1728032847042,0.41936,2384.7,2384.6,0.097]
[1728032847244,3.2078,2384.9,2384.5,0.4157]
[1728032847444,0.41937,2384.6,2384.5,0.4157]
[1728032847845,0.8266,2384.8,2384.5,0.4157]
[1728032848046,0.84044,2384.8,2384.7,0.41936]
[1728032848250,0.4211,2384.8,2384.6,3.27]
[1728032848455,0.84044,2384.8,2384.6,3.68936]
[1728032848658,0.84044,2384.8,2384.6,4.08616]
[1728032849150,0.84044,2384.8,2384.6,3.6668]
[1728032849354,0.84046,2384.8,2384.6,3.6668]
[1728032849847,0.4211,2384.8,2384.6,3.6668]
[1728032850055,0.84044,2384.8,2384.6,3.6668]
[1728032850355,0.4211,2384.8,2384.6,3.6668]
[1728032850756,0.41936,2384.7,2384.6,3.6668]
[1728032854755,0.41936,2384.7,2384.6,4.08617]
[1728032855453,0.41935,2384.8,2384.7,0.41936]
[1728032855953,0.41934,2384.8,2384.6,4.08616]
[1728032856546,3.2078,2384.9,2384.6,4.08616]
[1728032856752,0.41936,2384.7,2384.6,3.6668]
[1728032856952,0.41936,2384.7,2384.6,4.08617]
[1728032857260,3.2078,2384.9,2384.6,3.6668]
[1728032857460,0.41936,2384.7,2384.6,4.08616]
[1728032866266,3.2078,2384.8,2384.6,3.6668]
[1728032866461,0.41932,2384.9,2384.7,0.41936]
[1728032867069,0.41934,2384.8,2384.7,0.41936]
[1728032867660,0.41935,2384.8,2384.7,0.41935]
[1728032867862,3.62715,2384.8,2384.7,0.41935]
[1728032868168,3.2078,2384.8,2384.7,0.41935]
[1728032869070,3.62714,2384.8,2384.7,0.41935]
[1728032874770,3.62714,2384.8,2384.6,3.6668]
[1728032874771,0.41936,2384.7,2384.6,3.27]
[1728032875076,0.83676,2384.7,2384.6,3.27]
[1728032877574,0.83676,2384.7,2384.6,7.4636]
[1728032877771,4.04456,2384.7,2384.6,3.27]
[1728032877973,4.04456,2384.7,2384.6,7.4636]
[1728032878170,4.04456,2384.7,2384.6,3.27]
[1728032878475,4.04456,2384.7,2384.6,7.4636]
[1728032878679,4.04456,2384.7,2384.6,3.27]
[1728032878886,4.04456,2384.7,2384.6,7.4636]
[1728032878887,0.83676,2384.7,2384.6,7.4636]
[1728032879075,0.83676,2384.7,2384.6,3.27]
[1728032879277,4.04456,2384.7,2384.6,3.27]
[1728032880880,4.04456,2384.7,2384.6,7.4636]
[1728032881178,0.41934,2384.8,2384.7,0.41934]
[1728032881385,0.41936,2384.7,2384.6,3.68937]
[1728032881888,0.41936,2384.7,2384.6,7.88297]
[1728032882084,1.45291,2384.9,2384.6,7.4636]
[1728032882290,0.41936,2384.7,2384.6,3.68936]
[1728032882792,3.62716,2384.7,2384.6,7.88296]
[1728032883990,0.41935,2384.8,2384.7,0.41934]
[1728032884191,0.41936,2384.7,2384.6,3.68937]
[1728032885286,0.41937,2384.6,2384.5,4.10508]
[1728032885489,0.41937,2384.6,2384.5,2.34508]
[1728032885683,0.41937,2384.6,2384.5,6.53868]
[1728032886087,0.82367,2384.6,2384.5,6.53868]
[1728032886792,0.4043,2384.6,2384.5,6.53868]
[1728032887186,0.82367,2384.6,2384.5,6.53868]
[1728032888393,0.82367,2384.6,2384.5,6.1193]
[1728032888695,0.82367,2384.6,2384.5,6.53869]
[1728032888993,0.82367,2384.6,2384.5,4.6093]
[1728032889179,0.41939,2384.5,2384.4,1.51]
[1728032889383,0.81619,2384.5,2384.4,1.51]
[1728032889785,0.41943,2384.3,2384.2,1.9369]
[1728032891600,0.41943,2384.3,2384.2,0.4269]
[1728032892601,3.62722,2384.4,2384.2,0.84634]
[1728032893285,3.2078,2384.4,2384.2,0.84634]
[1728032893696,0.3968,2384.5,2384.4,0.41941]
[1728032893898,0.3968,2384.5,2384.4,3.68941]
[1728032894205,0.4043,2384.6,2384.4,3.27]
[1728032894403,0.4043,2384.6,2384.5,0.41939]
[1728032895200,5.46116425,2384.7,2384.6,0.41937]
[1728032895495,5.46116425,2384.7,2384.6,7.88297]
[1728032895701,5.46116425,2384.7,2384.6,8.29557]
[1728032897401,5.46116425,2384.7,2384.6,8.47129362]
[1728032898089,5.46116425,2384.7,2384.6,14.47129362]
[1728032898604,5.46116425,2384.7,2384.6,8.47129362]
[1728032898801,0.8079,2385.0,2384.6,14.05192362]
[1728032899008,0.8079,2385.0,2384.9,3.27]
[1728032899209,0.3886,2385.0,2384.9,3.27]
[1728032899396,0.402,2385.1,2384.9,3.27]
[1728032899704,0.402,2385.1,2385.0,0.4193]
[1728032899904,0.402,2385.1,2385.0,0.8373]
[1728032900501,3.2078,2385.4,2385.3,0.41925]
[1728032900706,3.6334,2385.4,2385.3,0.41925]
[1728032901007,0.4256,2385.4,2385.3,0.41925]
[1728032901208,0.4256,2385.4,2385.2,3.68926]
[1728032901209,0.84483,2385.4,2385.2,3.68926]
[1728032907610,0.4256,2385.4,2385.2,3.27]
[1728032907912,0.84484,2385.4,2385.2,3.68926]
[1728032909515,0.4256,2385.4,2385.2,3.27]
[1728032909912,0.84483,2385.4,2385.2,3.68925]
[1728032910113,0.4256,2385.4,2385.3,0.41925]
[1728032910617,0.4256,2385.4,2385.2,3.27]
[1728032910817,0.4256,2385.4,2385.3,0.41925]
[1728032911112,0.84483,2385.4,2385.3,0.41925]
[1728032911709,0.4256,2385.4,2385.3,0.41925]
[1728032912606,0.4256,2385.4,2385.2,3.27]
[1728032912811,0.4256,2385.4,2385.3,0.41925]
[1728032913713,0.4256,2385.4,2385.3,1.92925]
[1728032914316,0.84483,2385.4,2385.3,1.51]
[1728032915217,0.84483,2385.4,2385.3,1.92925]
[1728032916019,0.4256,2385.4,2385.3,1.92925]
[1728032916918,0.84483,2385.4,2385.3,1.51]
[1728032917324,0.4256,2385.4,2385.3,1.92925]
[1728032919626,0.4256,2385.4,2385.3,1.51]
[1728032919926,0.84483,2385.4,2385.3,1.51]
[1728032920424,0.84483,2385.4,2385.0,0.83729]
[1728032920425,0.41928,2385.2,2385.0,0.83729]
[1728032920720,0.41928,2385.2,2385.1,1.51]
[1728032920919,0.41928,2385.2,2385.0,2.3473]
[1728032921119,0.41927,2385.2,2385.1,1.51]
[1728032924828,0.41929,2385.1,2385.0,1.51]
[1728032926516,0.3882,2385.3,2385.0,1.51]
[1728032926716,0.3882,2385.3,2385.2,0.41927]
[1728032926923,0.4256,2385.4,2385.3,0.41925]
[1728032927129,0.4256,2385.4,2385.3,1.92925]
[1728032927623,0.4256,2385.4,2385.3,3.68925]
[1728032928017,0.4256,2385.4,2385.2,0.83846]
[1728032928327,0.4256,2385.4,2385.3,3.27]
[1728032928724,0.8537,2385.4,2385.3,3.27]
[1728032928933,0.41926,2385.3,2385.0,3.27]
[1728032929225,4.48074,2385.4,2385.1,0.4259]
[1728032929827,4.48074,2385.4,2385.1,0.84518]
[1728032930133,4.48074,2385.4,2385.1,0.4259]
[1728032931919,4.48074,2385.4,2385.1,0.84518]
[1728032932230,4.48075,2385.4,2385.1,0.4259]
[1728032932427,0.41925,2385.3,2385.1,0.4259]
[1728032933324,4.48075,2385.4,2385.1,0.84519]
[1728032933532,0.41925,2385.3,2385.1,0.84519]
[1728032934027,0.41925,2385.3,2385.1,0.4259]
[1728032934329,4.48075,2385.4,2385.1,0.84519]
[1728032934729,0.41925,2385.3,2385.1,0.84519]
[1728032935130,4.0615,2385.4,2385.1,0.84519]
[1728032935327,4.48075,2385.4,2385.1,0.84519]
[1728032937331,4.0615,2385.4,2385.0,3.6893]
[1728032937638,0.41929,2385.1,2384.9,0.417]
[1728032937838,0.8003,2385.0,2384.9,0.417]
[1728032938029,0.8003,2385.0,2384.9,0.83632]
[1728032938526,0.8003,2385.0,2384.9,0.417]
[1728032939036,0.8003,2385.0,2384.9,0.83632]
[1728032939938,0.8003,2385.0,2384.9,0.417]
[1728032940331,0.8003,2385.0,2384.9,4.10632]
[1728032947144,0.4078,2385.0,2384.9,4.10632]
[1728032947536,0.4078,2385.0,2384.9,2.34632]
[1728032947835,0.4078,2385.0,2384.9,2.73372]
[1728032949233,3.2078,2385.6,2384.9,6.5072]
[1728032949537,0.4152,2385.6,2385.5,1.92922]
[1728032949740,9.05994119,2385.9,2385.5,1.51]
[1728032950047,0.4152,2385.8,2385.6,0.41919]
[1728032950435,0.4152,2385.8,2385.7,1.51]
[1728032951749,0.4152,2385.8,2385.6,1.51]
[1728032951939,0.41919,2385.7,2385.5,1.51]
[1728032952339,4.61119,2385.7,2385.5,1.51]
[1728032953041,4.192,2385.7,2385.5,1.51]
[1728032953243,0.4152,2385.8,2385.6,1.51]
[1728032953440,0.83437,2385.8,2385.6,1.51]
[1728032953745,4.192,2385.7,2385.6,1.51]
[1728032954539,0.4152,2385.8,2385.6,1.9292]
[1728032955249,0.4152,2385.8,2385.6,1.51]
[1728032955447,0.4152,2385.8,2385.6,1.9292]
[1728032955643,0.41919,2385.7,2385.4,0.82582]
[1728032955852,0.41919,2385.7,2385.5,1.51]
[1728032956040,5.86203119,2385.7,2385.5,1.51]
[1728032956941,5.44284119,2385.7,2385.5,1.92921]
[1728032957143,6.27721119,2385.8,2385.5,1.92921]
[1728032958650,6.27721119,2385.8,2385.6,1.51]
[1728032958651,5.44284119,2385.7,2385.6,1.51]
[1728032959148,6.27720119,2385.8,2385.6,1.51]
[1728032960050,5.85804119,2385.8,2385.6,1.92919]
[1728032960352,5.44284119,2385.7,2385.6,1.51]
[1728032960536,5.86202119,2385.7,2385.6,1.51]
[1728032960742,0.41918,2385.7,2385.5,1.51]
[1728032961052,5.85804119,2385.8,2385.5,1.92921]
[1728032961053,6.27722119,2385.8,2385.5,1.92921]
[1728032961353,6.27721119,2385.8,2385.5,1.92921]
[1728032961544,5.85804119,2385.8,2385.6,1.51]
[1728032961752,5.85804119,2385.8,2385.7,0.41918]
[1728032962155,5.85804119,2385.8,2385.6,1.51]
[1728032962156,5.85804119,2385.8,2385.6,1.92919]
[1728032963455,0.4152,2385.8,2385.6,1.92919]
[1728032964453,0.83437,2385.8,2385.6,1.92919]
[1728032965553,0.83437,2385.8,2385.6,1.51]
[1728032966652,0.83437,2385.8,2385.6,1.9292]
[1728032967249,0.4152,2385.8,2385.6,1.9292]
[1728032968150,0.83436,2385.8,2385.7,0.4172]
[1728032972255,0.4152,2385.8,2385.7,0.83638]
[1728032972552,0.83436,2385.8,2385.7,1.51]
[1728032980862,0.41919,2385.7,2385.6,1.51]
[1728032981162,0.41921,2385.6,2385.4,0.83853]
[1728032981357,0.4231,2385.5,2385.4,0.83853]
[1728032981561,0.4231,2385.5,2385.4,2.34853]
[1728032990167,0.84232,2385.5,2385.4,1.9293]
[1728032990573,0.84232,2385.5,2385.4,2.34853]
[1728032990781,0.4231,2385.5,2385.4,2.34853]
[1728032992980,0.84232,2385.5,2385.4,2.34853]
[1728032999980,0.84232,2385.5,2385.4,1.9293]
[1728033003681,5.03432,2385.5,2385.4,0.4193]
[1728033003881,4.6151,2385.5,2385.2,1.51]
[1728033004080,0.4238,2385.4,2385.1,0.4025]
[1728033004280,1.89012,2385.4,2385.1,0.4025]
[1728033004481,0.41927,2385.2,2385.1,0.82178]
[1728033004687,4.61207,2385.2,2385.1,2.33178]
[1728033004890,4.1928,2385.2,2385.1,2.33178]
[1728033005078,0.41926,2385.3,2385.1,2.33177]
[1728033005981,0.4238,2385.4,2385.1,1.9125]
[1728033006181,0.4238,2385.4,2385.3,1.92925]
[1728033008196,0.84303,2385.4,2385.3,1.92925]
[1728033008490,0.4238,2385.4,2385.3,1.92925]
[1728033008685,0.4231,2385.5,2385.3,1.92925]
[1728033008686,0.84232,2385.5,2385.3,1.92925]
[1728033008884,1.25362,2385.5,2385.3,1.51]
[1728033009192,1.25362,2385.5,2385.4,0.84383]
[1728033009887,0.4113,2385.5,2385.4,0.84383]
[1728033010192,3.2078,2385.6,2385.5,0.41922]
[1728033010383,3.2078,2385.6,2385.5,1.92922]
[1728033013987,0.41922,2385.5,2385.4,1.9346]
[1728033014291,1.23712,2385.5,2385.4,1.9346]
[1728033014797,0.41925,2385.4,2385.2,1.92926]
[1728033015488,0.41925,2385.4,2385.3,1.51]
[1728033026294,0.8179,2385.5,2385.4,0.41923]
[1728033026493,1.23712,2385.5,2385.4,1.51]
[1728033026791,1.23712,2385.5,2385.4,1.9263]
[1728033026994,0.8179,2385.5,2385.4,2.34553]
[1728033027396,1.23712,2385.5,2385.4,1.9263]
[1728033027991,0.8179,2385.5,2385.4,2.34553]
[1728033035115,0.4287,2385.5,2385.4,2.34553]
[1728033036312,0.4287,2385.5,2385.4,1.9263]
[1728033036509,0.84792,2385.5,2385.4,0.4163]
[1728033038006,0.4287,2385.5,2385.4,0.4163]
[1728033038211,0.4287,2385.5,2385.4,1.9263]
[1728033038507,3.2078,2385.7,2385.6,0.4192]
[1728033038706,3.2078,2386.4,2385.7,1.04796]
[1728033038905,5.98314267,2386.6,2386.3,3.2078]
[1728033039101,5.98314267,2386.6,2386.5,1.92904]
[1728033039304,3.6173,2387.2,2386.5,1.51]
[1728033039503,3.6173,2387.2,2387.1,1.51]
[1728033039708,3.6173,2387.2,2387.0,1.51]
[1728033039913,7.8061,2387.2,2387.0,1.51]
[1728033040606,3.6173,2387.2,2387.0,1.51]
[1728033040802,6.5566185,2387.3,2387.1,1.51]
[1728033040999,6.5566185,2387.3,2387.2,3.62672]
[1728033041204,6.5566185,2387.3,2387.2,4.02522]
[1728033041612,6.5566185,2387.3,2387.2,7.29522]
[1728033041808,6.5566185,2387.3,2387.2,6.8763]
[1728033042010,6.5566185,2387.3,2387.2,7.29522]
[1728033043113,0.4247,2387.7,2387.2,7.29522]
[1728033044517,0.4247,2387.7,2387.3,0.41889]
[1728033045216,0.4247,2387.7,2387.3,0.41888]
[1728033045410,0.4247,2387.7,2387.2,6.8763]
[1728033045718,0.4247,2387.7,2387.5,3.68886]